[Event "Late-Titled-Tuesday-Blitz-January-23-2024"]
[Site "Chess.com"]
[Date "2024.01.23"]
[Round "11"]
[White "rikchessmx"]
[Black "Hirna2005"]
[Result "0-1"]
[WhiteElo "2388"]
[BlackElo "2313"]
[TimeControl "180+1"]
[EndTime "16:03:30 PST"]
[Termination "Hirna2005 won on time"]

1. e4 {[%clk 0:02:52.4]} 1... g6 {[%clk 0:03:00.5]} 2. d4 {[%clk 0:02:51.9]}
2... Bg7 {[%clk 0:03:01.1]} 3. Nc3 {[%clk 0:02:51.3]} 3... d6 {[%clk 0:03:01.7]}
4. f3 {[%clk 0:02:51.1]} 4... a6 {[%clk 0:02:58.8]} 5. Be3 {[%clk 0:02:50.8]}
5... Nf6 {[%clk 0:02:58]} 6. Qd2 {[%clk 0:02:50.8]} 6... O-O {[%clk 0:02:57.8]}
7. h4 {[%clk 0:02:49]} 7... h5 {[%clk 0:02:56.4]} 8. Nh3 {[%clk 0:02:48.3]} 8...
Bxh3 {[%clk 0:02:54.6]} 9. Rxh3 {[%clk 0:02:47.8]} 9... Nbd7 {[%clk 0:02:53.8]}
10. Be2 {[%clk 0:02:44.6]} 10... c5 {[%clk 0:02:49.2]} 11. g4 {[%clk 0:02:41.3]}
11... cxd4 {[%clk 0:02:40.5]} 12. Bxd4 {[%clk 0:02:40.6]} 12... Rc8 {[%clk
0:02:38.7]} 13. O-O-O {[%clk 0:02:35.8]} 13... Qa5 {[%clk 0:02:22.2]} 14. Kb1
{[%clk 0:02:34.1]} 14... Kh7 {[%clk 0:02:06.5]} 15. gxh5 {[%clk 0:02:33.3]}
15... Nxh5 {[%clk 0:02:06]} 16. Bxg7 {[%clk 0:02:28.2]} 16... Kxg7 {[%clk
0:02:05.7]} 17. f4 {[%clk 0:02:27.8]} 17... Ndf6 {[%clk 0:01:57.7]} 18. f5
{[%clk 0:02:18.7]} 18... Rc5 {[%clk 0:01:43]} 19. Rg1 {[%clk 0:02:12.5]} 19...
Rfc8 {[%clk 0:01:33.1]} 20. Bxh5 {[%clk 0:02:12.4]} 20... Nxh5 {[%clk
0:01:26.9]} 21. Qg5 {[%clk 0:02:07.7]} 21... Kf8 {[%clk 0:01:24.6]} 22. Qh6+
{[%clk 0:02:05.2]} 22... Ke8 {[%clk 0:01:23.2]} 23. fxg6 {[%clk 0:02:02]} 23...
fxg6 {[%clk 0:01:23]} 24. Qxg6+ {[%clk 0:02:01.7]} 24... Kd7 {[%clk 0:01:23.4]}
25. Qg4+ {[%clk 0:01:39]} 25... Kd8 {[%clk 0:01:20.6]} 26. Rf1 {[%clk
0:01:33.4]} 26... Kc7 {[%clk 0:01:09.2]} 27. Nd5+ {[%clk 0:01:26.8]} 27... Kb8
{[%clk 0:01:09.1]} 28. c3 {[%clk 0:00:59.3]} 28... Nf6 {[%clk 0:00:30.1]} 29.
Nxf6 {[%clk 0:00:56.7]} 29... exf6 {[%clk 0:00:30.1]} 30. h5 {[%clk 0:00:48.1]}
30... Rxc3 {[%clk 0:00:29.6]} 31. Rxc3 {[%clk 0:00:40.5]} 31... Rxc3 {[%clk
0:00:29]} 32. bxc3 {[%clk 0:00:40.3]} 32... Qb5+ {[%clk 0:00:29]} 33. Kc2 {[%clk
0:00:36.7]} 33... Qxf1 {[%clk 0:00:28.8]} 34. Qg6 {[%clk 0:00:33]} 34... Qe2+
{[%clk 0:00:25.8]} 35. Kb3 {[%clk 0:00:32.9]} 35... Qd1+ {[%clk 0:00:24.2]} 36.
Kc4 {[%clk 0:00:30.8]} 36... Qe2+ {[%clk 0:00:20.6]} 37. Kd5 {[%clk 0:00:29.8]}
37... Qd3+ {[%clk 0:00:19.9]} 38. Ke6 {[%clk 0:00:29.9]} 38... d5 {[%clk
0:00:19.3]} 39. exd5 {[%clk 0:00:29]} 39... Qxc3 {[%clk 0:00:18]} 40. Qxf6
{[%clk 0:00:21.2]} 40... Qc8+ {[%clk 0:00:14]} 41. Ke5 {[%clk 0:00:20.9]} 41...
Qc3+ {[%clk 0:00:13.5]} 42. Kf5 {[%clk 0:00:20.3]} 42... Qf3+ {[%clk 0:00:13.4]}
43. Kg6 {[%clk 0:00:20.5]} 43... Qe4+ {[%clk 0:00:12.5]} 44. Qf5 {[%clk
0:00:20.1]} 44... Qg2+ {[%clk 0:00:12.3]} 45. Kh7 {[%clk 0:00:18.5]} 45... Ka7
{[%clk 0:00:11.6]} 46. h6 {[%clk 0:00:18.5]} 46... Qg3 {[%clk 0:00:11.2]} 47.
Qe6 {[%clk 0:00:08]} 47... Qd3+ {[%clk 0:00:10]} 48. Kg8 {[%clk 0:00:07.8]}
48... Qg3+ {[%clk 0:00:09.1]} 49. Kf8 {[%clk 0:00:06.1]} 49... Qf4+ {[%clk
0:00:08.8]} 50. Ke7 {[%clk 0:00:06.2]} 50... Qg5+ {[%clk 0:00:08.6]} 51. Kd7
{[%clk 0:00:06.1]} 51... Qh5 {[%clk 0:00:07.4]} 52. d6 {[%clk 0:00:04.7]} 52...
Qh4 {[%clk 0:00:06.5]} 53. Kc8 {[%clk 0:00:03.5]} 53... Qh5 {[%clk 0:00:05.5]}
54. d7 {[%clk 0:00:02.2]} 54... Qc5+ {[%clk 0:00:03.7]} 55. Kd8 {[%clk
0:00:01.4]} 55... Qf8+ {[%clk 0:00:03.6]} 56. Qe8 {[%clk 0:00:01]} 56... Qf6+
{[%clk 0:00:03.8]} 0-1

[Event "Late-Titled-Tuesday-Blitz-January-23-2024"]
[Site "Chess.com"]
[Date "2024.01.23"]
[Round "11"]
[White "The_Machine04"]
[Black "Rawnsdale"]
[Result "1/2-1/2"]
[WhiteElo "2715"]
[BlackElo "2549"]
[TimeControl "180+1"]
[EndTime "16:03:36 PST"]
[Termination "Game drawn by repetition"]

1. d4 {[%clk 0:03:00.3]} 1... d5 {[%clk 0:02:59.3]} 2. Nf3 {[%clk 0:03:00]} 2...
e6 {[%clk 0:02:59.4]} 3. e3 {[%clk 0:02:59.5]} 3... Be7 {[%clk 0:02:59.6]} 4.
Nbd2 {[%clk 0:02:59.2]} 4... Nf6 {[%clk 0:02:59.8]} 5. Bd3 {[%clk 0:02:58.9]}
5... O-O {[%clk 0:03:00.1]} 6. O-O {[%clk 0:02:58]} 6... Nbd7 {[%clk 0:03:00.4]}
7. Ne5 {[%clk 0:02:57.1]} 7... c5 {[%clk 0:03:00.3]} 8. c3 {[%clk 0:02:56.8]}
8... Bd6 {[%clk 0:02:48.3]} 9. f4 {[%clk 0:02:55.8]} 9... b6 {[%clk 0:02:47.5]}
10. Qf3 {[%clk 0:02:54.9]} 10... Bb7 {[%clk 0:02:47]} 11. g4 {[%clk 0:02:51]}
11... cxd4 {[%clk 0:02:01]} 12. exd4 {[%clk 0:02:49.1]} 12... Ne4 {[%clk
0:01:43.8]} 13. Nxe4 {[%clk 0:02:48.6]} 13... dxe4 {[%clk 0:01:43]} 14. Bxe4
{[%clk 0:02:49.5]} 14... Bxe4 {[%clk 0:01:43.2]} 15. Qxe4 {[%clk 0:02:50.4]}
15... Nf6 {[%clk 0:01:42.4]} 16. Qg2 {[%clk 0:02:45.5]} 16... Bxe5 {[%clk
0:01:41.7]} 17. fxe5 {[%clk 0:02:44.7]} 17... Nd5 {[%clk 0:01:41.9]} 18. Bd2
{[%clk 0:02:41.5]} 18... Rc8 {[%clk 0:01:41.9]} 19. Rf3 {[%clk 0:02:39.9]} 19...
b5 {[%clk 0:01:39.8]} 20. Raf1 {[%clk 0:02:39.7]} 20... a5 {[%clk 0:01:37.6]}
21. a3 {[%clk 0:02:38.9]} 21... Qb6 {[%clk 0:01:32]} 22. Qf2 {[%clk 0:02:37.2]}
22... Rc7 {[%clk 0:01:29.2]} 23. h4 {[%clk 0:02:28.6]} 23... Qb7 {[%clk
0:01:20.8]} 24. h5 {[%clk 0:02:26.8]} 24... b4 {[%clk 0:01:19.4]} 25. axb4
{[%clk 0:02:12]} 25... axb4 {[%clk 0:01:18.1]} 26. h6 {[%clk 0:02:12.6]} 26...
g6 {[%clk 0:01:16.1]} 27. Rc1 {[%clk 0:02:11.1]} 27... Rfc8 {[%clk 0:01:11.5]}
28. Qf1 {[%clk 0:02:03.1]} 28... Qb6 {[%clk 0:00:57.6]} 29. Kh2 {[%clk
0:01:58.7]} 29... bxc3 {[%clk 0:00:46]} 30. bxc3 {[%clk 0:01:57.5]} 30... Qb2
{[%clk 0:00:45.7]} 31. Qg2 {[%clk 0:01:47.4]} 31... Ra7 {[%clk 0:00:37.4]} 32.
Bg5 {[%clk 0:01:44.5]} 32... Ra2 {[%clk 0:00:35]} 33. Qxb2 {[%clk 0:01:41.8]}
33... Rxb2+ {[%clk 0:00:35.9]} 34. Kg3 {[%clk 0:01:42.5]} 34... Kf8 {[%clk
0:00:18.5]} 35. c4 {[%clk 0:01:39.6]} 35... Nb6 {[%clk 0:00:14.1]} 36. Rcf1
{[%clk 0:01:32]} 36... Rc7 {[%clk 0:00:14.2]} 37. Bd8 {[%clk 0:01:30.9]} 37...
Rd7 {[%clk 0:00:12.8]} 38. Bxb6 {[%clk 0:01:28.3]} 38... Rxb6 {[%clk 0:00:13.7]}
39. d5 {[%clk 0:01:24]} 39... exd5 {[%clk 0:00:13.4]} 40. cxd5 {[%clk
0:01:24.9]} 40... Ke8 {[%clk 0:00:12.6]} 41. e6 {[%clk 0:01:23.1]} 41... fxe6
{[%clk 0:00:12.9]} 42. Rf8+ {[%clk 0:01:18.7]} 42... Ke7 {[%clk 0:00:13.4]} 43.
R1f7+ {[%clk 0:01:15.4]} 43... Kd6 {[%clk 0:00:13.3]} 44. dxe6 {[%clk 0:01:14]}
44... Rxf7 {[%clk 0:00:07.9]} 45. Rxf7 {[%clk 0:01:07.4]} 45... Kxe6 {[%clk
0:00:07.7]} 46. Rxh7 {[%clk 0:01:07.3]} 46... Kf6 {[%clk 0:00:08]} 47. Rc7
{[%clk 0:00:57.2]} 47... g5 {[%clk 0:00:04.9]} 48. Kf3 {[%clk 0:00:51.7]} 48...
Kg6 {[%clk 0:00:04.3]} 49. h7 {[%clk 0:00:50.9]} 49... Rb8 {[%clk 0:00:04.6]}
50. Ke4 {[%clk 0:00:50.5]} 50... Re8+ {[%clk 0:00:04.6]} 51. Kd5 {[%clk
0:00:49.4]} 51... Kf6 {[%clk 0:00:05]} 52. Rc1 {[%clk 0:00:39.6]} 52... Kg7
{[%clk 0:00:04.6]} 53. Rh1 {[%clk 0:00:39.5]} 53... Kh8 {[%clk 0:00:02.9]} 54.
Rh5 {[%clk 0:00:37.8]} 54... Re1 {[%clk 0:00:02.5]} 55. Kd4 {[%clk 0:00:30.7]}
55... Rg1 {[%clk 0:00:02.2]} 56. Rxg5 {[%clk 0:00:30.1]} 56... Kxh7 {[%clk
0:00:03.1]} 57. Ke3 {[%clk 0:00:26]} 57... Rf1 {[%clk 0:00:03.3]} 58. Rf5 {[%clk
0:00:15.4]} 58... Rxf5 {[%clk 0:00:02.7]} 59. gxf5 {[%clk 0:00:16.3]} 59... Kg7
{[%clk 0:00:03.5]} 60. Ke4 {[%clk 0:00:13.7]} 60... Kf7 {[%clk 0:00:04.1]} 61.
Kf4 {[%clk 0:00:14.6]} 61... Kf6 {[%clk 0:00:04.6]} 62. Ke4 {[%clk 0:00:15.2]}
62... Kf7 {[%clk 0:00:05.3]} 63. Ke5 {[%clk 0:00:15.8]} 63... Ke7 {[%clk
0:00:05.9]} 64. Ke4 {[%clk 0:00:15.4]} 64... Kf7 {[%clk 0:00:06.1]} 1/2-1/2

[Event "Late-Titled-Tuesday-Blitz-January-23-2024"]
[Site "Chess.com"]
[Date "2024.01.23"]
[Round "11"]
[White "BogdanDeac"]
[Black "FairChess_on_YouTube"]
[Result "1-0"]
[WhiteElo "3089"]
[BlackElo "3090"]
[TimeControl "180+1"]
[EndTime "16:03:37 PST"]
[Termination "BogdanDeac won by checkmate"]

1. d4 {[%clk 0:03:00.9]} 1... g6 {[%clk 0:03:00.2]} 2. e4 {[%clk 0:03:00.5]}
2... Bg7 {[%clk 0:03:00.6]} 3. Nc3 {[%clk 0:03:01.2]} 3... c6 {[%clk 0:03:00]}
4. h3 {[%clk 0:03:00.8]} 4... d6 {[%clk 0:02:58.3]} 5. Be3 {[%clk 0:02:59.8]}
5... Nf6 {[%clk 0:02:56.6]} 6. Bd3 {[%clk 0:02:51.1]} 6... O-O {[%clk
0:02:54.8]} 7. Nf3 {[%clk 0:02:51.2]} 7... Nbd7 {[%clk 0:02:54.1]} 8. O-O {[%clk
0:02:51]} 8... e5 {[%clk 0:02:53.9]} 9. dxe5 {[%clk 0:02:50.8]} 9... Nxe5 {[%clk
0:02:49.8]} 10. Nxe5 {[%clk 0:02:50.4]} 10... dxe5 {[%clk 0:02:50.7]} 11. a4
{[%clk 0:02:50.7]} 11... Nh5 {[%clk 0:02:49.4]} 12. Qd2 {[%clk 0:02:27.8]} 12...
Be6 {[%clk 0:02:41.1]} 13. a5 {[%clk 0:02:19.9]} 13... Qe7 {[%clk 0:02:41.1]}
14. Rfd1 {[%clk 0:02:02.7]} 14... Rfd8 {[%clk 0:02:39.1]} 15. Ne2 {[%clk
0:01:53.5]} 15... Qc7 {[%clk 0:02:19.6]} 16. b3 {[%clk 0:01:16.6]} 16... Rd7
{[%clk 0:02:17.4]} 17. Qc1 {[%clk 0:01:13.2]} 17... a6 {[%clk 0:02:06.7]} 18.
Bb6 {[%clk 0:00:46.4]} 18... Qc8 {[%clk 0:02:03.6]} 19. Rb1 {[%clk 0:00:38.5]}
19... Qf8 {[%clk 0:01:50.4]} 20. Bc4 {[%clk 0:00:35.8]} 20... Qe7 {[%clk
0:01:26.9]} 21. Rd3 {[%clk 0:00:32.8]} 21... Rxd3 {[%clk 0:01:23.4]} 22. cxd3
{[%clk 0:00:31.2]} 22... Bd7 {[%clk 0:01:19.5]} 23. Qe3 {[%clk 0:00:28.3]} 23...
Qh4 {[%clk 0:01:14.6]} 24. d4 {[%clk 0:00:21.1]} 24... Re8 {[%clk 0:01:05]} 25.
d5 {[%clk 0:00:20.7]} 25... Nf4 {[%clk 0:01:04.5]} 26. Nxf4 {[%clk 0:00:19.6]}
26... exf4 {[%clk 0:01:04.1]} 27. Qf3 {[%clk 0:00:20]} 27... Be5 {[%clk
0:00:58.3]} 28. Rd1 {[%clk 0:00:18.7]} 28... g5 {[%clk 0:00:46.4]} 29. dxc6
{[%clk 0:00:18.9]} 29... Bxc6 {[%clk 0:00:45.1]} 30. Bd5 {[%clk 0:00:19.1]}
30... Bb5 {[%clk 0:00:38.4]} 31. Bc4 {[%clk 0:00:17.1]} 31... Bc6 {[%clk
0:00:33.5]} 32. Qg4 {[%clk 0:00:14]} 32... Qxg4 {[%clk 0:00:16.1]} 33. hxg4
{[%clk 0:00:14.3]} 33... Kg7 {[%clk 0:00:12.9]} 34. f3 {[%clk 0:00:14.3]} 34...
Rc8 {[%clk 0:00:10.5]} 35. Kf2 {[%clk 0:00:13.5]} 35... h6 {[%clk 0:00:10.3]}
36. Ke2 {[%clk 0:00:13.6]} 36... Kf6 {[%clk 0:00:09.9]} 37. Bd8+ {[%clk
0:00:12.5]} 37... Kg7 {[%clk 0:00:09.5]} 38. Bb6 {[%clk 0:00:12.1]} 38... Kf6
{[%clk 0:00:09.8]} 39. Rd3 {[%clk 0:00:11]} 39... Bb5 {[%clk 0:00:07.6]} 40.
Bxb5 {[%clk 0:00:10.9]} 40... axb5 {[%clk 0:00:07.9]} 41. Rd7 {[%clk 0:00:06.6]}
41... Rc2+ {[%clk 0:00:06.1]} 42. Kd1 {[%clk 0:00:07]} 42... Rxg2 {[%clk
0:00:04.6]} 43. Rxb7 {[%clk 0:00:07.1]} 43... h5 {[%clk 0:00:04.8]} 44. a6
{[%clk 0:00:04.4]} 44... hxg4 {[%clk 0:00:04.5]} 45. a7 {[%clk 0:00:04]} 45...
Ra2 {[%clk 0:00:04.9]} 46. fxg4 {[%clk 0:00:04.3]} 46... f3 {[%clk 0:00:04.8]}
47. Rb8 {[%clk 0:00:04.7]} 47... f2 {[%clk 0:00:02.2]} 48. Bxf2 {[%clk
0:00:04.5]} 48... Ra1+ {[%clk 0:00:02.1]} 49. Ke2 {[%clk 0:00:03.4]} 49... Ra2+
{[%clk 0:00:02.8]} 50. Kf3 {[%clk 0:00:02.8]} 50... Bg3 {[%clk 0:00:02.7]} 51.
Bd4+ {[%clk 0:00:02.5]} 51... Ke6 {[%clk 0:00:02.6]} 52. a8=Q {[%clk 0:00:02.2]}
52... Ra3 {[%clk 0:00:03.5]} 53. Rb6+ {[%clk 0:00:02.1]} 53... Bd6 {[%clk
0:00:03.8]} 54. Rxd6+ {[%clk 0:00:02.8]} 54... Kxd6 {[%clk 0:00:03.8]} 55. Qxa3+
{[%clk 0:00:03.7]} 55... Kd7 {[%clk 0:00:04.7]} 56. Qb2 {[%clk 0:00:04.4]} 56...
Ke6 {[%clk 0:00:05.6]} 57. Qc2 {[%clk 0:00:05.3]} 57... f5 {[%clk 0:00:06.5]}
58. Qc5 {[%clk 0:00:05.8]} 58... f4 {[%clk 0:00:06.5]} 59. Ke2 {[%clk
0:00:06.5]} 59... Kf7 {[%clk 0:00:07.1]} 60. Kf2 {[%clk 0:00:07.2]} 60... Kg6
{[%clk 0:00:08]} 61. Qf5+ {[%clk 0:00:07.8]} 61... Kh6 {[%clk 0:00:08.1]} 62.
Qf6+ {[%clk 0:00:08.2]} 62... Kh7 {[%clk 0:00:08.4]} 63. Qg7# {[%clk 0:00:09.1]}
1-0

[Event "Late-Titled-Tuesday-Blitz-January-23-2024"]
[Site "Chess.com"]
[Date "2024.01.23"]
[Round "11"]
[White "Siemba"]
[Black "GMKrikor"]
[Result "0-1"]
[WhiteElo "2575"]
[BlackElo "2772"]
[TimeControl "180+1"]
[EndTime "16:03:43 PST"]
[Termination "GMKrikor won by checkmate"]

1. e4 {[%clk 0:03:00.9]} 1... e6 {[%clk 0:02:59.5]} 2. d4 {[%clk 0:03:01.2]}
2... d5 {[%clk 0:02:59.4]} 3. Nc3 {[%clk 0:03:01.9]} 3... Nf6 {[%clk 0:02:59]}
4. Bg5 {[%clk 0:03:02.6]} 4... dxe4 {[%clk 0:02:58.9]} 5. Nxe4 {[%clk
0:03:03.1]} 5... Be7 {[%clk 0:02:59.4]} 6. Bxf6 {[%clk 0:03:03.8]} 6... gxf6
{[%clk 0:02:59.8]} 7. Nf3 {[%clk 0:03:04.5]} 7... f5 {[%clk 0:03:00]} 8. Nc3
{[%clk 0:03:04.7]} 8... a6 {[%clk 0:03:00.3]} 9. g3 {[%clk 0:03:05.4]} 9... b5
{[%clk 0:02:59.8]} 10. Bg2 {[%clk 0:03:06.1]} 10... Bb7 {[%clk 0:03:00.2]} 11.
O-O {[%clk 0:03:06.4]} 11... O-O {[%clk 0:02:57.1]} 12. Ne5 {[%clk 0:03:03.2]}
12... Bxg2 {[%clk 0:02:55.5]} 13. Kxg2 {[%clk 0:03:04.1]} 13... c5 {[%clk
0:02:55.5]} 14. Qf3 {[%clk 0:02:54.4]} 14... Ra7 {[%clk 0:02:54.1]} 15. dxc5
{[%clk 0:02:53.8]} 15... Qc7 {[%clk 0:02:34.8]} 16. Rfe1 {[%clk 0:02:53.6]}
16... Qxc5 {[%clk 0:02:29.3]} 17. Rad1 {[%clk 0:02:49.5]} 17... Bf6 {[%clk
0:02:25.8]} 18. Nd3 {[%clk 0:02:43.3]} 18... Qc6 {[%clk 0:02:21.2]} 19. Nb4
{[%clk 0:02:30.4]} 19... Qxf3+ {[%clk 0:02:19.8]} 20. Kxf3 {[%clk 0:02:31.3]}
20... Bxc3 {[%clk 0:02:17.4]} 21. bxc3 {[%clk 0:02:32.2]} 21... Rc7 {[%clk
0:02:12.2]} 22. Rd3 {[%clk 0:02:31.1]} 22... a5 {[%clk 0:02:08.2]} 23. Nd5
{[%clk 0:02:20.8]} 23... exd5 {[%clk 0:02:07.4]} 24. Re5 {[%clk 0:02:21.2]}
24... Rfc8 {[%clk 0:01:56.4]} 25. Rxf5 {[%clk 0:02:16.8]} 25... Rxc3 {[%clk
0:01:53.9]} 26. Rxd5 {[%clk 0:02:17.5]} 26... Rxc2 {[%clk 0:01:51.5]} 27. Rxb5
{[%clk 0:02:16.1]} 27... Nc6 {[%clk 0:01:42.4]} 28. a4 {[%clk 0:02:12]} 28...
Rc4 {[%clk 0:01:40]} 29. Kg2 {[%clk 0:02:08.6]} 29... Rxa4 {[%clk 0:01:24.2]}
30. Rd7 {[%clk 0:02:08.2]} 30... Re4 {[%clk 0:01:17.1]} 31. Rg5+ {[%clk
0:02:05]} 31... Kf8 {[%clk 0:01:17]} 32. Rh5 {[%clk 0:02:05.3]} 32... Re7 {[%clk
0:01:16.2]} 33. Rxh7 {[%clk 0:01:36.1]} 33... Rxd7 {[%clk 0:01:14.8]} 34. Rh8+
{[%clk 0:01:36.6]} 34... Ke7 {[%clk 0:01:15.1]} 35. Rxc8 {[%clk 0:01:37.5]}
35... Kd6 {[%clk 0:01:12.3]} 36. h4 {[%clk 0:01:35.9]} 36... f5 {[%clk
0:00:55.6]} 37. h5 {[%clk 0:01:32.6]} 37... Ra7 {[%clk 0:00:54.8]} 38. Rg8
{[%clk 0:01:22.1]} 38... a4 {[%clk 0:00:45.6]} 39. h6 {[%clk 0:01:21.7]} 39...
a3 {[%clk 0:00:44.9]} 40. Rg6+ {[%clk 0:01:14.5]} 40... Kc5 {[%clk 0:00:40]} 41.
Rf6 {[%clk 0:00:44.5]} 41... a2 {[%clk 0:00:38.3]} 42. Rxf5+ {[%clk 0:00:45.2]}
42... Kc4 {[%clk 0:00:34.2]} 43. Rf4+ {[%clk 0:00:45.1]} 43... Nd4 {[%clk
0:00:32.7]} 44. Rh4 {[%clk 0:00:34.1]} 44... a1=Q {[%clk 0:00:25.1]} 45. h7
{[%clk 0:00:34.7]} 45... Ra8 {[%clk 0:00:19.9]} 46. h8=Q {[%clk 0:00:28]} 46...
Rxh8 {[%clk 0:00:19.5]} 47. Rxh8 {[%clk 0:00:28.9]} 47... Qd1 {[%clk 0:00:18.9]}
48. Rf8 {[%clk 0:00:20.4]} 48... Kd5 {[%clk 0:00:18.6]} 49. Rf4 {[%clk
0:00:16.6]} 49... Ke5 {[%clk 0:00:18.6]} 50. Kh3 {[%clk 0:00:10.6]} 50... Qh1+
{[%clk 0:00:15.9]} 51. Kg4 {[%clk 0:00:11.2]} 51... Qd1+ {[%clk 0:00:13.7]} 52.
f3 {[%clk 0:00:10.3]} 52... Ne6 {[%clk 0:00:12.4]} 53. Re4+ {[%clk 0:00:10.3]}
53... Kf6 {[%clk 0:00:12.2]} 54. Re3 {[%clk 0:00:07.1]} 54... Qd5 {[%clk
0:00:11]} 55. f4 {[%clk 0:00:02.9]} 55... Qf5+ {[%clk 0:00:10.7]} 56. Kf3 {[%clk
0:00:03.3]} 56... Nd4+ {[%clk 0:00:11.3]} 57. Kf2 {[%clk 0:00:03.7]} 57... Qc2+
{[%clk 0:00:11.5]} 58. Kf1 {[%clk 0:00:04.2]} 58... Qd2 {[%clk 0:00:11.7]} 59.
Re5 {[%clk 0:00:03.9]} 59... Nf3 {[%clk 0:00:11.6]} 60. Re2 {[%clk 0:00:03.5]}
60... Qd3 {[%clk 0:00:11.6]} 61. Kf2 {[%clk 0:00:03.8]} 61... Nd4 {[%clk
0:00:12.2]} 62. Re5 {[%clk 0:00:03.3]} 62... Qd2+ {[%clk 0:00:12.3]} 63. Kf1
{[%clk 0:00:03.9]} 63... Nf5 {[%clk 0:00:12.1]} 64. g4 {[%clk 0:00:03]} 64...
Ne3+ {[%clk 0:00:12.7]} 65. Kg1 {[%clk 0:00:02.7]} 65... Qg2# {[%clk 0:00:12.1]}
0-1

[Event "Late-Titled-Tuesday-Blitz-January-23-2024"]
[Site "Chess.com"]
[Date "2024.01.23"]
[Round "11"]
[White "BeardedNM"]
[Black "UnTucopalaTimba"]
[Result "1-0"]
[WhiteElo "2200"]
[BlackElo "1921"]
[TimeControl "180+1"]
[EndTime "16:03:45 PST"]
[Termination "BeardedNM won by resignation"]

1. e4 {[%clk 0:02:57.8]} 1... c6 {[%clk 0:02:59.2]} 2. d4 {[%clk 0:02:57]} 2...
d5 {[%clk 0:02:59.5]} 3. e5 {[%clk 0:02:57.5]} 3... Bf5 {[%clk 0:02:59.3]} 4.
Nf3 {[%clk 0:02:57.9]} 4... e6 {[%clk 0:02:58.7]} 5. Be2 {[%clk 0:02:58.4]} 5...
Ne7 {[%clk 0:02:55.1]} 6. O-O {[%clk 0:02:57.8]} 6... Nd7 {[%clk 0:02:55.2]} 7.
Nbd2 {[%clk 0:02:57.7]} 7... Nc8 {[%clk 0:02:53.9]} 8. Nb3 {[%clk 0:02:56.8]}
8... Be7 {[%clk 0:02:53.9]} 9. a4 {[%clk 0:02:53.9]} 9... a6 {[%clk 0:02:53.5]}
10. a5 {[%clk 0:02:48.5]} 10... Na7 {[%clk 0:02:53]} 11. Be3 {[%clk 0:02:40.4]}
11... Nb5 {[%clk 0:02:50.9]} 12. c4 {[%clk 0:02:39.7]} 12... dxc4 {[%clk
0:02:50]} 13. Bxc4 {[%clk 0:02:40.6]} 13... Qc7 {[%clk 0:02:32.7]} 14. Bd3
{[%clk 0:02:31.4]} 14... Bxd3 {[%clk 0:02:27.6]} 15. Qxd3 {[%clk 0:02:32.3]}
15... Rd8 {[%clk 0:02:21.6]} 16. Qe4 {[%clk 0:02:19.8]} 16... Nf8 {[%clk
0:02:02.7]} 17. h4 {[%clk 0:02:12.1]} 17... h5 {[%clk 0:01:58.3]} 18. Bg5 {[%clk
0:01:54.5]} 18... Bxg5 {[%clk 0:01:44]} 19. Nxg5 {[%clk 0:01:55.4]} 19... Ng6
{[%clk 0:01:37.3]} 20. Nxe6 {[%clk 0:01:48.2]} 20... fxe6 {[%clk 0:01:33.8]} 21.
Qxg6+ {[%clk 0:01:48.3]} 21... Qf7 {[%clk 0:01:33.7]} 22. Qe4 {[%clk 0:01:30.7]}
22... Qf5 {[%clk 0:01:27.2]} 23. Rfe1 {[%clk 0:01:16.7]} 23... O-O {[%clk
0:01:21.3]} 24. Qxf5 {[%clk 0:01:16.8]} 24... Rxf5 {[%clk 0:01:20.5]} 25. Re4
{[%clk 0:01:09.9]} 25... Rdf8 {[%clk 0:01:11]} 26. f3 {[%clk 0:01:06.6]} 26...
Rd8 {[%clk 0:01:05]} 27. Rd1 {[%clk 0:01:02.5]} 27... Nc7 {[%clk 0:00:50]} 28.
Nc5 {[%clk 0:00:56.1]} 28... Rd5 {[%clk 0:00:40.5]} 29. Nxb7 {[%clk 0:00:51.2]}
29... Rb5 {[%clk 0:00:39]} 30. Nd6 {[%clk 0:00:51.3]} 30... Rxb2 {[%clk
0:00:33.9]} 31. Nxf5 {[%clk 0:00:49.3]} 31... exf5 {[%clk 0:00:34]} 32. Ree1
{[%clk 0:00:44.8]} 32... Ne6 {[%clk 0:00:33.9]} 33. g3 {[%clk 0:00:33.9]} 33...
Rb3 {[%clk 0:00:28.7]} 34. Kf2 {[%clk 0:00:30.2]} 34... Rb5 {[%clk 0:00:26.7]}
35. Ke3 {[%clk 0:00:12.9]} 35... Rxa5 {[%clk 0:00:23.5]} 36. Ra1 {[%clk
0:00:12.8]} 36... Rb5 {[%clk 0:00:20.6]} 37. Rxa6 {[%clk 0:00:12]} 37... Rb3+
{[%clk 0:00:20.6]} 38. Kf2 {[%clk 0:00:10.1]} 38... Nxd4 {[%clk 0:00:20.5]} 39.
Re3 {[%clk 0:00:10.2]} 39... Rb2+ {[%clk 0:00:20.1]} 40. Kg1 {[%clk 0:00:10.1]}
40... Ne2+ {[%clk 0:00:18.7]} 41. Kh2 {[%clk 0:00:08.6]} 41... Nf4+ {[%clk
0:00:14.8]} 42. Kh1 {[%clk 0:00:07.6]} 42... Rb1+ {[%clk 0:00:14.4]} 43. Kh2
{[%clk 0:00:07.4]} 43... Rb2+ {[%clk 0:00:14.7]} 44. Kg1 {[%clk 0:00:06]} 44...
Rg2+ {[%clk 0:00:13.6]} 45. Kf1 {[%clk 0:00:04.2]} 45... Rxg3 {[%clk 0:00:13.6]}
46. e6 {[%clk 0:00:04.7]} 46... Nd5 {[%clk 0:00:10.7]} 47. Re2 {[%clk
0:00:02.7]} 47... Rxf3+ {[%clk 0:00:10.4]} 48. Ke1 {[%clk 0:00:03.3]} 48... Ne7
{[%clk 0:00:10.2]} 49. Ra7 {[%clk 0:00:03.3]} 49... Nd5 {[%clk 0:00:07.2]} 50.
e7 {[%clk 0:00:03]} 50... Nxe7 {[%clk 0:00:07.5]} 51. Rexe7 {[%clk 0:00:03.4]}
51... Rg3 {[%clk 0:00:06.7]} 52. Rf7 {[%clk 0:00:03.7]} 52... Rg1+ {[%clk
0:00:06.4]} 53. Kf2 {[%clk 0:00:03.6]} 53... Rg4 {[%clk 0:00:05.9]} 54. Rxf5
{[%clk 0:00:03.4]} 54... Rxh4 {[%clk 0:00:05.5]} 55. Rg5 {[%clk 0:00:03.8]}
55... Rg4 {[%clk 0:00:05.1]} 56. Rxg4 {[%clk 0:00:04.1]} 56... hxg4 {[%clk
0:00:05.2]} 57. Kg3 {[%clk 0:00:04.8]} 57... Kf8 {[%clk 0:00:04]} 58. Rc7 {[%clk
0:00:04.7]} 58... g5 {[%clk 0:00:03.1]} 59. Rxc6 {[%clk 0:00:04.7]} 59... Kg7
{[%clk 0:00:02.8]} 60. Ra6 {[%clk 0:00:04.8]} 1-0